[Event "Late-Titled-Tuesday-Blitz-April-30-2024"]
[Site "Chess.com"]
[Date "2024.04.30"]
[Round "8"]
[White "GlavkonVVS"]
[Black "CDOEspiao"]
[Result "0-1"]
[WhiteElo "2683"]
[BlackElo "2552"]
[TimeControl "180+1"]
[EndTime "15:27:32 PDT"]
[Termination "CDOEspiao won by resignation"]

1. c4 {[%clk 0:02:56]} 1... c5 {[%clk 0:02:58.7]} 2. Nc3 {[%clk 0:02:55.9]} 2...
Nf6 {[%clk 0:02:59.6]} 3. g3 {[%clk 0:02:56.3]} 3... e6 {[%clk 0:02:58.8]} 4.
Bg2 {[%clk 0:02:56.8]} 4... d5 {[%clk 0:02:59.5]} 5. Nf3 {[%clk 0:02:57.1]} 5...
d4 {[%clk 0:02:58.2]} 6. Na4 {[%clk 0:02:56.7]} 6... Nc6 {[%clk 0:02:55]} 7. O-O
{[%clk 0:02:55.3]} 7... Be7 {[%clk 0:02:54.9]} 8. d3 {[%clk 0:02:55.8]} 8... O-O
{[%clk 0:02:55]} 9. e3 {[%clk 0:02:56.2]} 9... e5 {[%clk 0:02:38.6]} 10. exd4
{[%clk 0:02:56.3]} 10... exd4 {[%clk 0:02:39.5]} 11. Bg5 {[%clk 0:02:53]} 11...
h6 {[%clk 0:02:39.1]} 12. Bxf6 {[%clk 0:02:53]} 12... gxf6 {[%clk 0:02:38.2]}
13. Nd2 {[%clk 0:02:41.7]} 13... Ne5 {[%clk 0:02:26.5]} 14. Ne4 {[%clk
0:02:23.8]} 14... Qc7 {[%clk 0:02:21.8]} 15. h3 {[%clk 0:02:08.6]} 15... f5
{[%clk 0:02:17.3]} 16. f4 {[%clk 0:01:53]} 16... fxe4 {[%clk 0:02:16.3]} 17.
fxe5 {[%clk 0:01:53.1]} 17... Qxe5 {[%clk 0:02:09.9]} 18. dxe4 {[%clk
0:01:26.6]} 18... Qxg3 {[%clk 0:02:09.1]} 19. Rf3 {[%clk 0:01:24.6]} 19... Qg6
{[%clk 0:02:01.4]} 20. Qd3 {[%clk 0:01:24.1]} 20... Kh8 {[%clk 0:01:56.9]} 21.
Raf1 {[%clk 0:01:14.9]} 21... Rg8 {[%clk 0:01:54.2]} 22. R1f2 {[%clk 0:01:08.2]}
22... Be6 {[%clk 0:01:51.3]} 23. b4 {[%clk 0:01:03.7]} 23... b6 {[%clk
0:01:44.9]} 24. bxc5 {[%clk 0:01:01.3]} 24... bxc5 {[%clk 0:01:45.8]} 25. Qc2
{[%clk 0:00:26.3]} 25... Rg7 {[%clk 0:01:39.7]} 26. Nb2 {[%clk 0:00:25.4]} 26...
Rag8 {[%clk 0:01:35.8]} 27. Nd3 {[%clk 0:00:22.5]} 27... Qxe4 {[%clk 0:01:26.3]}
28. Qd2 {[%clk 0:00:19.8]} 28... Bg5 {[%clk 0:01:13]} 29. Qc2 {[%clk 0:00:12.4]}
29... Be3 {[%clk 0:01:07.4]} 30. Rxe3 {[%clk 0:00:11.3]} 30... Qxe3 {[%clk
0:01:08.1]} 31. Kh1 {[%clk 0:00:08.6]} 31... Bxh3 {[%clk 0:01:00.7]} 32. Nf4
{[%clk 0:00:04.1]} 32... Bxg2+ {[%clk 0:00:57.2]} 33. Nxg2 {[%clk 0:00:04.3]}
33... Qh3+ {[%clk 0:00:55]} 34. Kg1 {[%clk 0:00:04.5]} 34... d3 {[%clk
0:00:52.8]} 35. Qd2 {[%clk 0:00:05]} 35... Rxg2+ {[%clk 0:00:50.7]} 36. Rxg2
{[%clk 0:00:04.9]} 36... Rxg2+ {[%clk 0:00:51.2]} 37. Qxg2 {[%clk 0:00:05.1]}
37... Qxg2+ {[%clk 0:00:52.1]} 38. Kxg2 {[%clk 0:00:05.7]} 38... d2 {[%clk
0:00:52.7]} 0-1

[Event "Late-Titled-Tuesday-Blitz-April-30-2024"]
[Site "Chess.com"]
[Date "2024.04.30"]
[Round "8"]
[White "platy3"]
[Black "Umumba_FM"]
[Result "1-0"]
[WhiteElo "2881"]
[BlackElo "2703"]
[TimeControl "180+1"]
[EndTime "15:27:37 PDT"]
[Termination "platy3 won by resignation"]

1. e4 {[%clk 0:02:54.7]} 1... Nc6 {[%clk 0:03:00]} 2. Nf3 {[%clk 0:02:52.5]}
2... f5 {[%clk 0:02:57.9]} 3. exf5 {[%clk 0:02:51.4]} 3... d5 {[%clk 0:02:58.3]}
4. d4 {[%clk 0:02:51.3]} 4... Bxf5 {[%clk 0:02:58.3]} 5. Bd3 {[%clk 0:02:51.5]}
5... Bg4 {[%clk 0:02:58.4]} 6. h3 {[%clk 0:02:51.6]} 6... Bxf3 {[%clk
0:02:58.4]} 7. Qxf3 {[%clk 0:02:51.6]} 7... Nf6 {[%clk 0:02:59.3]} 8. c3 {[%clk
0:02:51.7]} 8... e5 {[%clk 0:02:59.2]} 9. dxe5 {[%clk 0:02:51.8]} 9... Nxe5
{[%clk 0:03:00.1]} 10. Qe2 {[%clk 0:02:52.5]} 10... Qe7 {[%clk 0:02:54.1]} 11.
O-O {[%clk 0:02:52.9]} 11... Nxd3 {[%clk 0:02:52.8]} 12. Qxd3 {[%clk 0:02:53.8]}
12... O-O-O {[%clk 0:02:52.9]} 13. Bf4 {[%clk 0:02:53.7]} 13... Qd7 {[%clk
0:02:50.1]} 14. Nd2 {[%clk 0:02:53]} 14... Bd6 {[%clk 0:02:50.3]} 15. Bxd6
{[%clk 0:02:52.9]} 15... Qxd6 {[%clk 0:02:51.2]} 16. Nb3 {[%clk 0:02:52.7]}
16... Kb8 {[%clk 0:02:46.8]} 17. Rad1 {[%clk 0:02:52.4]} 17... g5 {[%clk
0:02:46.8]} 18. Nd4 {[%clk 0:02:52.4]} 18... g4 {[%clk 0:02:46.1]} 19. h4 {[%clk
0:02:51.7]} 19... Nh5 {[%clk 0:02:41]} 20. Qf5 {[%clk 0:02:50.9]} 20... Nf4
{[%clk 0:02:35.8]} 21. Rfe1 {[%clk 0:02:51.3]} 21... Rdf8 {[%clk 0:02:32]} 22.
Qe5 {[%clk 0:02:48]} 22... Qd8 {[%clk 0:02:07.4]} 23. Nf5 {[%clk 0:02:38.3]}
23... Ng6 {[%clk 0:02:02.7]} 24. Qxd5 {[%clk 0:02:38.4]} 24... Qf6 {[%clk
0:01:53.4]} 25. Re6 {[%clk 0:02:38]} 25... Qxf5 {[%clk 0:01:48]} 26. Re8+ {[%clk
0:02:37.6]} 26... Rxe8 {[%clk 0:01:40.9]} 27. Qxf5 {[%clk 0:02:37.2]} 27... Nxh4
{[%clk 0:01:40.7]} 28. Qh5 {[%clk 0:02:30.1]} 28... Ng6 {[%clk 0:01:37.7]} 29.
Qxg4 {[%clk 0:02:30.5]} 29... Rhg8 {[%clk 0:01:37.9]} 30. Qd4 {[%clk 0:02:27.9]}
30... b6 {[%clk 0:01:34.6]} 31. Rd3 {[%clk 0:02:19.4]} 31... Re1+ {[%clk
0:01:02.3]} 32. Kh2 {[%clk 0:02:19.4]} 32... Re2 {[%clk 0:01:02.7]} 33. c4
{[%clk 0:02:19]} 33... Ne5 {[%clk 0:00:56.4]} 34. Rg3 {[%clk 0:02:16.6]} 34...
Rf8 {[%clk 0:00:44.8]} 35. c5 {[%clk 0:01:55]} 35... Rfxf2 {[%clk 0:00:27.2]}
36. Qd5 {[%clk 0:01:49.4]} 36... Rf8 {[%clk 0:00:23.7]} 37. Rg8 {[%clk
0:01:44.7]} 37... Rxg8 {[%clk 0:00:23.6]} 38. Qxg8+ {[%clk 0:01:44.4]} 38... Kb7
{[%clk 0:00:24.5]} 39. cxb6 {[%clk 0:01:39.4]} 39... axb6 {[%clk 0:00:24.2]} 40.
Qxh7 {[%clk 0:01:37.5]} 40... Rxb2 {[%clk 0:00:22.3]} 41. Qe4+ {[%clk
0:01:35.7]} 41... Nc6 {[%clk 0:00:22.5]} 42. Qd5 {[%clk 0:01:35.9]} 42... Rc2
{[%clk 0:00:17.6]} 43. Kh3 {[%clk 0:01:33.6]} 43... Rc5 {[%clk 0:00:18.1]} 44.
Qe4 {[%clk 0:01:32.6]} 44... b5 {[%clk 0:00:19]} 45. g4 {[%clk 0:01:31.9]} 45...
Kb6 {[%clk 0:00:18.6]} 46. Kh4 {[%clk 0:01:31.8]} 46... Rc4 {[%clk 0:00:18]} 47.
Qe3+ {[%clk 0:01:32.2]} 47... Ka5 {[%clk 0:00:17.2]} 48. Kh5 {[%clk 0:01:32.4]}
48... b4 {[%clk 0:00:15]} 49. g5 {[%clk 0:01:32.1]} 49... Rc3 {[%clk 0:00:13]}
50. Qe4 {[%clk 0:01:31.7]} 50... Kb5 {[%clk 0:00:09.3]} 51. g6 {[%clk
0:01:31.1]} 51... Rc5+ {[%clk 0:00:09.4]} 52. Kh6 {[%clk 0:01:31]} 52... Re5
{[%clk 0:00:08.7]} 53. Qxe5+ {[%clk 0:01:25.1]} 53... Nxe5 {[%clk 0:00:09]} 54.
g7 {[%clk 0:01:25.6]} 54... Nf7+ {[%clk 0:00:06]} 55. Kh5 {[%clk 0:01:25.6]}
55... Nd6 {[%clk 0:00:04.5]} 56. g8=Q {[%clk 0:01:25.7]} 56... c5 {[%clk
0:00:05.4]} 57. Qd5 {[%clk 0:01:25.4]} 57... Nc4 {[%clk 0:00:05]} 58. Qd3 {[%clk
0:01:22.3]} 1-0

[Event "Late-Titled-Tuesday-Blitz-April-30-2024"]
[Site "Chess.com"]
[Date "2024.04.30"]
[Round "8"]
[White "nitpicker"]
[Black "SergioMoralesG"]
[Result "1-0"]
[WhiteElo "2262"]
[BlackElo "2441"]
[TimeControl "180+1"]
[EndTime "15:27:37 PDT"]
[Termination "nitpicker won by resignation"]

1. d4 {[%clk 0:03:00.9]} 1... d5 {[%clk 0:01:12.2]} 2. c4 {[%clk 0:02:58.5]}
2... c6 {[%clk 0:01:12.4]} 3. Nf3 {[%clk 0:02:57.9]} 3... Nf6 {[%clk 0:01:12.6]}
4. Qb3 {[%clk 0:02:57.9]} 4... dxc4 {[%clk 0:01:04.8]} 5. Qxc4 {[%clk
0:02:57.4]} 5... Bf5 {[%clk 0:01:05]} 6. Nc3 {[%clk 0:02:53.4]} 6... e6 {[%clk
0:01:05.2]} 7. g3 {[%clk 0:02:47.5]} 7... Nbd7 {[%clk 0:01:04.7]} 8. Qb3 {[%clk
0:02:41.8]} 8... Qb6 {[%clk 0:00:59.7]} 9. Nd2 {[%clk 0:02:35.5]} 9... Qxd4
{[%clk 0:00:40.9]} 10. Qxb7 {[%clk 0:02:16.1]} 10... Rb8 {[%clk 0:00:40.8]} 11.
Qxc6 {[%clk 0:02:10]} 11... Bb4 {[%clk 0:00:39.6]} 12. Bg2 {[%clk 0:01:46.1]}
12... O-O {[%clk 0:00:35.3]} 13. Nf3 {[%clk 0:01:38.4]} 13... Bxc3+ {[%clk
0:00:16.7]} 14. bxc3 {[%clk 0:01:28.4]} 14... Qd5 {[%clk 0:00:14.5]} 15. Nd4
{[%clk 0:01:25.6]} 15... Qa5 {[%clk 0:00:13.2]} 16. Nxf5 {[%clk 0:00:40.4]}
16... exf5 {[%clk 0:00:14.1]} 17. O-O {[%clk 0:00:21.2]} 17... Rfc8 {[%clk
0:00:14.2]} 18. Qd6 {[%clk 0:00:19.7]} 18... Qxc3 {[%clk 0:00:14.4]} 19. Bf4
{[%clk 0:00:17.8]} 19... Rb6 {[%clk 0:00:14.8]} 20. Qd3 {[%clk 0:00:11.8]} 20...
Qxd3 {[%clk 0:00:14.6]} 21. exd3 {[%clk 0:00:12.2]} 21... Nc5 {[%clk 0:00:14.8]}
22. Rfc1 {[%clk 0:00:11.1]} 22... Nfd7 {[%clk 0:00:04.1]} 23. d4 {[%clk
0:00:10.7]} 23... g5 {[%clk 0:00:02.6]} 24. Be3 {[%clk 0:00:10.3]} 24... Rbc6
{[%clk 0:00:01.4]} 25. Bxc6 {[%clk 0:00:08.8]} 25... Rxc6 {[%clk 0:00:02]} 26.
dxc5 {[%clk 0:00:09.5]} 1-0

[Event "Late-Titled-Tuesday-Blitz-April-30-2024"]
[Site "Chess.com"]
[Date "2024.04.30"]
[Round "8"]
[White "superchess02"]
[Black "Mackster23"]
[Result "1-0"]
[WhiteElo "2862"]
[BlackElo "2617"]
[TimeControl "180+1"]
[EndTime "15:27:38 PDT"]
[Termination "superchess02 won on time"]

1. d4 {[%clk 0:03:00.9]} 1... Nf6 {[%clk 0:02:59.7]} 2. c4 {[%clk 0:03:01.8]}
2... e6 {[%clk 0:02:59.7]} 3. Nc3 {[%clk 0:03:02]} 3... Bb4 {[%clk 0:02:59.6]}
4. a3 {[%clk 0:03:01.4]} 4... Bxc3+ {[%clk 0:02:59.1]} 5. bxc3 {[%clk
0:03:02.3]} 5... c5 {[%clk 0:02:59.4]} 6. e3 {[%clk 0:03:03]} 6... b6 {[%clk
0:02:57.3]} 7. Bd3 {[%clk 0:03:03]} 7... Bb7 {[%clk 0:02:57.2]} 8. Ne2 {[%clk
0:03:01.5]} 8... Bxg2 {[%clk 0:02:51]} 9. Rg1 {[%clk 0:03:01.5]} 9... Be4 {[%clk
0:02:45.6]} 10. Nf4 {[%clk 0:02:26.6]} 10... Bg6 {[%clk 0:02:43.8]} 11. h4
{[%clk 0:02:25.2]} 11... Bxd3 {[%clk 0:02:32.3]} 12. Nxd3 {[%clk 0:02:22.5]}
12... O-O {[%clk 0:02:26.8]} 13. h5 {[%clk 0:02:21.8]} 13... Kh8 {[%clk
0:02:23.9]} 14. Qf3 {[%clk 0:02:20.2]} 14... Nc6 {[%clk 0:02:22.2]} 15. e4
{[%clk 0:02:19.5]} 15... cxd4 {[%clk 0:02:17.5]} 16. h6 {[%clk 0:02:19.4]} 16...
gxh6 {[%clk 0:01:46.9]} 17. Bxh6 {[%clk 0:02:19.1]} 17... Rg8 {[%clk 0:01:47.5]}
18. O-O-O {[%clk 0:02:19]} 18... Qe7 {[%clk 0:01:39.3]} 19. c5 {[%clk
0:02:07.5]} 19... bxc5 {[%clk 0:01:26.8]} 20. Bg5 {[%clk 0:01:55.9]} 20... Rxg5
{[%clk 0:01:16.8]} 21. Rxg5 {[%clk 0:01:56.8]} 21... Nxe4 {[%clk 0:01:12.5]} 22.
Rh5 {[%clk 0:01:56.1]} 22... f5 {[%clk 0:01:04.5]} 23. Rdh1 {[%clk 0:01:46.7]}
23... Nf6 {[%clk 0:01:04.1]} 24. Rh6 {[%clk 0:01:46]} 24... Rb8 {[%clk
0:00:38.6]} 25. Nf4 {[%clk 0:01:42]} 25... Ne5 {[%clk 0:00:33.1]} 26. Qe2 {[%clk
0:01:42.1]} 26... Ne4 {[%clk 0:00:17.5]} 27. Qh5 {[%clk 0:01:26.9]} 27... Nf6
{[%clk 0:00:08.6]} 28. Qg5 {[%clk 0:01:22]} 28... Rf8 {[%clk 0:00:06.8]} 29. Re1
{[%clk 0:01:00.4]} 29... c4 {[%clk 0:00:05.1]} 30. Rxe5 {[%clk 0:00:46.3]} 30...
Qxa3+ {[%clk 0:00:05.6]} 31. Kd1 {[%clk 0:00:46.9]} 31... Qa1+ {[%clk
0:00:02.3]} 32. Ke2 {[%clk 0:00:46.6]} 32... Qb2+ {[%clk 0:00:02.6]} 33. Kf3
{[%clk 0:00:41.2]} 33... Qxc3+ {[%clk 0:00:02.8]} 34. Kg2 {[%clk 0:00:41.8]}
34... Rg8 {[%clk 0:00:01.8]} 35. Ng6+ {[%clk 0:00:41.7]} 35... Rxg6 {[%clk
0:00:02.2]} 36. Qxg6 {[%clk 0:00:42]} 1-0

[Event "Late-Titled-Tuesday-Blitz-April-30-2024"]
[Site "Chess.com"]
[Date "2024.04.30"]
[Round "8"]
[White "FairChess_on_YouTube"]
[Black "MatthewG-p4p"]
[Result "1-0"]
[WhiteElo "3091"]
[BlackElo "2874"]
[TimeControl "180+1"]
[EndTime "15:27:41 PDT"]
[Termination "FairChess_on_YouTube won by resignation"]

1. d4 {[%clk 0:03:00.9]} 1... Nf6 {[%clk 0:02:55]} 2. c4 {[%clk 0:03:01]} 2...
c5 {[%clk 0:02:55.4]} 3. Nf3 {[%clk 0:02:59.4]} 3... cxd4 {[%clk 0:02:55]} 4.
Nxd4 {[%clk 0:03:00.3]} 4... e5 {[%clk 0:02:55.3]} 5. Nb5 {[%clk 0:03:00.4]}
5... d5 {[%clk 0:02:55.6]} 6. cxd5 {[%clk 0:03:01.3]} 6... Bc5 {[%clk
0:02:56.2]} 7. e3 {[%clk 0:03:01.6]} 7... O-O {[%clk 0:02:56.5]} 8. N5c3 {[%clk
0:03:01.4]} 8... e4 {[%clk 0:02:55.3]} 9. Be2 {[%clk 0:03:01.4]} 9... Re8 {[%clk
0:02:53.9]} 10. a3 {[%clk 0:03:01.1]} 10... a5 {[%clk 0:02:53.3]} 11. Nd2 {[%clk
0:02:59.5]} 11... Qe7 {[%clk 0:02:38]} 12. g4 {[%clk 0:02:49.4]} 12... Rd8
{[%clk 0:02:29.1]} 13. Nb3 {[%clk 0:02:37.3]} 13... Bd6 {[%clk 0:02:10.8]} 14.
g5 {[%clk 0:02:36.6]} 14... Nfd7 {[%clk 0:02:11.1]} 15. h4 {[%clk 0:02:33.4]}
15... Nc5 {[%clk 0:02:09.1]} 16. Nxc5 {[%clk 0:02:28.4]} 16... Bxc5 {[%clk
0:02:10]} 17. b3 {[%clk 0:01:59.7]} 17... Bf5 {[%clk 0:02:02.3]} 18. Bg4 {[%clk
0:01:46.6]} 18... Qd7 {[%clk 0:01:55.7]} 19. Rg1 {[%clk 0:01:42.5]} 19... Re8
{[%clk 0:01:29.1]} 20. Bb2 {[%clk 0:01:40.4]} 20... Bxg4 {[%clk 0:01:21.7]} 21.
Qxg4 {[%clk 0:01:39.7]} 21... Qe7 {[%clk 0:01:22.2]} 22. O-O-O {[%clk
0:01:24.7]} 22... Bxa3 {[%clk 0:01:11.3]} 23. d6 {[%clk 0:01:25.1]} 23... Bxb2+
{[%clk 0:01:00.5]} 24. Kxb2 {[%clk 0:01:25.1]} 24... Qd7 {[%clk 0:00:51.5]} 25.
Nxe4 {[%clk 0:01:24.4]} 25... Qxg4 {[%clk 0:00:48.4]} 26. Rxg4 {[%clk
0:01:25.3]} 26... Nd7 {[%clk 0:00:47.2]} 27. Nc3 {[%clk 0:01:20.1]} 27... f5
{[%clk 0:00:36.5]} 28. Rc4 {[%clk 0:01:13.7]} 28... Ne5 {[%clk 0:00:29.7]} 29.
Rc7 {[%clk 0:01:12.1]} 29... b6 {[%clk 0:00:21.7]} 30. Nd5 {[%clk 0:01:09.8]}
30... Red8 {[%clk 0:00:14.9]} 31. Ne7+ {[%clk 0:01:06.8]} 31... Kh8 {[%clk
0:00:14.9]} 32. Nxf5 {[%clk 0:01:07]} 32... Rf8 {[%clk 0:00:15.7]} 33. f4 {[%clk
0:00:54.3]} 33... Ng4 {[%clk 0:00:15.5]} 34. d7 {[%clk 0:00:51.4]} 34... Rad8
{[%clk 0:00:15.1]} 35. e4 {[%clk 0:00:44.2]} 35... g6 {[%clk 0:00:13.9]} 36. Nd6
{[%clk 0:00:44.4]} 36... Kg7 {[%clk 0:00:05.8]} 37. Nb7 {[%clk 0:00:43.2]} 37...
Nf2 {[%clk 0:00:04.6]} 38. Rd4 {[%clk 0:00:41.2]} 1-0

[Event "Late-Titled-Tuesday-Blitz-April-30-2024"]
[Site "Chess.com"]
[Date "2024.04.30"]
[Round "8"]
[White "emeli_chess"]
[Black "carloseduar100"]
[Result "0-1"]
[WhiteElo "2439"]
[BlackElo "2244"]
[TimeControl "180+1"]
[EndTime "15:27:42 PDT"]
[Termination "carloseduar100 won by resignation"]

1. d4 {[%clk 0:03:00.9]} 1... d5 {[%clk 0:02:53.8]} 2. c4 {[%clk 0:02:59.8]}
2... e5 {[%clk 0:02:53.4]} 3. dxe5 {[%clk 0:02:59.3]} 3... d4 {[%clk 0:02:54.3]}
4. Nf3 {[%clk 0:02:59.6]} 4... Nc6 {[%clk 0:02:54.6]} 5. g3 {[%clk 0:02:59.9]}
5... Nge7 {[%clk 0:02:54.9]} 6. Bg2 {[%clk 0:02:59.1]} 6... Ng6 {[%clk
0:02:54.8]} 7. Bg5 {[%clk 0:02:58.8]} 7... Be7 {[%clk 0:02:54.8]} 8. Bxe7 {[%clk
0:02:58]} 8... Qxe7 {[%clk 0:02:55.7]} 9. O-O {[%clk 0:02:56.7]} 9... Ngxe5
{[%clk 0:02:53.5]} 10. Nxd4 {[%clk 0:02:52.4]} 10... Nxd4 {[%clk 0:02:50.8]} 11.
Qxd4 {[%clk 0:02:51.3]} 11... O-O {[%clk 0:02:51.5]} 12. Nc3 {[%clk 0:02:44.1]}
12... c6 {[%clk 0:02:51.2]} 13. b3 {[%clk 0:02:38.3]} 13... a6 {[%clk
0:02:50.6]} 14. Rad1 {[%clk 0:02:35]} 14... Bf5 {[%clk 0:02:48.1]} 15. Qd6
{[%clk 0:02:30.6]} 15... Rfe8 {[%clk 0:02:41.1]} 16. Qxe7 {[%clk 0:02:27.8]}
16... Rxe7 {[%clk 0:02:42]} 17. e4 {[%clk 0:02:20.8]} 17... Bg4 {[%clk
0:02:40.2]} 18. f3 {[%clk 0:02:20.7]} 18... Bh5 {[%clk 0:02:40.7]} 19. h3 {[%clk
0:02:02.2]} 19... g5 {[%clk 0:02:40.4]} 20. Kf2 {[%clk 0:01:48.4]} 20... Rae8
{[%clk 0:02:37.8]} 21. Rd6 {[%clk 0:01:43.5]} 21... Kg7 {[%clk 0:02:37.3]} 22.
Rfd1 {[%clk 0:01:41]} 22... f6 {[%clk 0:02:34.2]} 23. Rd8 {[%clk 0:01:40]} 23...
Rxd8 {[%clk 0:02:25.3]} 24. Rxd8 {[%clk 0:01:39.1]} 24... Bf7 {[%clk 0:02:25]}
25. f4 {[%clk 0:01:15.8]} 25... Ng6 {[%clk 0:02:20.2]} 26. Kf3 {[%clk
0:01:08.1]} 26... h5 {[%clk 0:02:19.6]} 27. f5 {[%clk 0:00:39.9]} 27... Ne5+
{[%clk 0:02:19.4]} 28. Kf2 {[%clk 0:00:38]} 28... g4 {[%clk 0:02:11.7]} 29. h4
{[%clk 0:00:37.7]} 29... Be8 {[%clk 0:02:05.5]} 30. Bf1 {[%clk 0:00:35.6]} 30...
Bd7 {[%clk 0:02:04]} 31. Be2 {[%clk 0:00:35]} 31... Re8 {[%clk 0:01:57.7]} 32.
Rxe8 {[%clk 0:00:34.5]} 32... Bxe8 {[%clk 0:01:57.5]} 33. Ke3 {[%clk 0:00:34]}
33... Kf7 {[%clk 0:01:58]} 34. Kf4 {[%clk 0:00:31.4]} 34... Ke7 {[%clk
0:01:56.6]} 35. Nd1 {[%clk 0:00:29.4]} 35... Kd6 {[%clk 0:01:55.5]} 36. b4
{[%clk 0:00:28.9]} 36... b6 {[%clk 0:01:52.3]} 37. a3 {[%clk 0:00:28.3]} 37...
Bf7 {[%clk 0:01:52.4]} 38. Ne3 {[%clk 0:00:26.3]} 38... c5 {[%clk 0:01:52.6]}
39. Nd5 {[%clk 0:00:22.2]} 39... Bxd5 {[%clk 0:01:50.2]} 40. exd5 {[%clk
0:00:20.2]} 40... cxb4 {[%clk 0:01:50.2]} 41. axb4 {[%clk 0:00:20.3]} 41... a5
{[%clk 0:01:50.5]} 42. bxa5 {[%clk 0:00:20.5]} 42... bxa5 {[%clk 0:01:51.4]} 43.
Ke3 {[%clk 0:00:20.8]} 43... Kc5 {[%clk 0:01:50.8]} 44. Kd2 {[%clk 0:00:19.3]}
44... Kd4 {[%clk 0:01:37]} 45. Kc2 {[%clk 0:00:18.4]} 45... Nf7 {[%clk
0:01:23.9]} 46. Kb3 {[%clk 0:00:15.9]} 46... Nd6 {[%clk 0:01:23.8]} 47. Ka4
{[%clk 0:00:14.7]} 47... Nxf5 {[%clk 0:01:23.5]} 48. Kxa5 {[%clk 0:00:13.1]}
48... Kc5 {[%clk 0:01:23.3]} 49. Ka6 {[%clk 0:00:07.7]} 49... Nxg3 {[%clk
0:01:23.2]} 50. Kb7 {[%clk 0:00:07.5]} 50... Nxe2 {[%clk 0:01:22.2]} 51. Kc7
{[%clk 0:00:07.8]} 51... Nd4 {[%clk 0:01:18.5]} 52. d6 {[%clk 0:00:08.1]} 52...
g3 {[%clk 0:01:18.6]} 53. d7 {[%clk 0:00:08.5]} 53... Ne6+ {[%clk 0:01:19.2]}
0-1

[Event "Late-Titled-Tuesday-Blitz-April-30-2024"]
[Site "Chess.com"]
[Date "2024.04.30"]
[Round "8"]
[White "GothamChess"]
[Black "Cambek64"]
[Result "1-0"]
[WhiteElo "2688"]
[BlackElo "2516"]
[TimeControl "180+1"]
[EndTime "15:27:48 PDT"]
[Termination "GothamChess won on time"]

1. e4 {[%clk 0:03:00.9]} 1... e6 {[%clk 0:02:59.3]} 2. b3 {[%clk 0:03:00.4]}
2... d5 {[%clk 0:02:58.9]} 3. Bb2 {[%clk 0:03:01.2]} 3... dxe4 {[%clk
0:02:58.4]} 4. Nc3 {[%clk 0:03:01.8]} 4... Nf6 {[%clk 0:02:57]} 5. Qe2 {[%clk
0:03:02.1]} 5... Bd7 {[%clk 0:02:54.4]} 6. O-O-O {[%clk 0:03:00.5]} 6... Bc6
{[%clk 0:02:53.9]} 7. g4 {[%clk 0:03:00.6]} 7... h6 {[%clk 0:02:52.6]} 8. Bg2
{[%clk 0:03:00.7]} 8... Nbd7 {[%clk 0:02:52.9]} 9. h4 {[%clk 0:03:00.7]} 9...
Bd6 {[%clk 0:02:28.8]} 10. g5 {[%clk 0:02:57.8]} 10... Ng8 {[%clk 0:02:18.9]}
11. Nxe4 {[%clk 0:02:27.4]} 11... Be5 {[%clk 0:02:17.8]} 12. d4 {[%clk
0:02:15.1]} 12... Bf4+ {[%clk 0:02:15.7]} 13. Kb1 {[%clk 0:02:15.5]} 13... hxg5
{[%clk 0:02:15.4]} 14. d5 {[%clk 0:02:02.1]} 14... Bxd5 {[%clk 0:01:52.7]} 15.
Bxg7 {[%clk 0:01:54.7]} 15... Bxe4 {[%clk 0:01:48]} 16. Qxe4 {[%clk 0:01:46.2]}
16... Rh5 {[%clk 0:00:47.4]} 17. Bf3 {[%clk 0:01:46.4]} 17... Ngf6 {[%clk
0:00:30.8]} 18. Bxf6 {[%clk 0:01:35.8]} 18... Qxf6 {[%clk 0:00:25]} 19. Bxh5
{[%clk 0:01:31.9]} 19... O-O-O {[%clk 0:00:23.2]} 20. Ne2 {[%clk 0:01:28.1]}
20... Bd6 {[%clk 0:00:21.8]} 21. hxg5 {[%clk 0:01:14.9]} 21... Qxg5 {[%clk
0:00:20]} 22. Bxf7 {[%clk 0:01:12.7]} 22... Nc5 {[%clk 0:00:19.5]} 23. Bxe6+
{[%clk 0:01:04]} 23... Kb8 {[%clk 0:00:20]} 24. Qd5 {[%clk 0:01:01.5]} 24... Qf6
{[%clk 0:00:18.6]} 25. Nd4 {[%clk 0:00:58.9]} 25... Be7 {[%clk 0:00:12]} 26. Qc4
{[%clk 0:00:43.2]} 26... c6 {[%clk 0:00:08.5]} 27. Rhe1 {[%clk 0:00:41.8]} 27...
Bf8 {[%clk 0:00:07.1]} 28. b4 {[%clk 0:00:40.4]} 28... Na4 {[%clk 0:00:04]} 29.
Rd3 {[%clk 0:00:26.3]} 29... Bg7 {[%clk 0:00:03.4]} 30. Red1 {[%clk 0:00:22.9]}
30... Ka8 {[%clk 0:00:01]} 31. f3 {[%clk 0:00:19.8]} 1-0

[Event "Late-Titled-Tuesday-Blitz-April-30-2024"]
[Site "Chess.com"]
[Date "2024.04.30"]
[Round "8"]
[White "Nemsko"]
[Black "azikom"]
[Result "0-1"]
[WhiteElo "2449"]
[BlackElo "2721"]
[TimeControl "180+1"]
[EndTime "15:27:50 PDT"]
[Termination "azikom won by resignation"]

1. e4 {[%clk 0:03:00.9]} 1... c5 {[%clk 0:02:59.2]} 2. Nf3 {[%clk 0:03:00.7]}
2... e6 {[%clk 0:03:00.1]} 3. d4 {[%clk 0:03:01.2]} 3... cxd4 {[%clk 0:03:00.3]}
4. Nxd4 {[%clk 0:03:02.1]} 4... a6 {[%clk 0:03:00.9]} 5. c4 {[%clk 0:03:02.7]}
5... g6 {[%clk 0:03:00]} 6. Nc3 {[%clk 0:03:02.9]} 6... Bg7 {[%clk 0:03:00.6]}
7. Be3 {[%clk 0:03:02]} 7... Ne7 {[%clk 0:03:00.7]} 8. f3 {[%clk 0:02:59.5]}
8... O-O {[%clk 0:02:58.8]} 9. Be2 {[%clk 0:03:00]} 9... d5 {[%clk 0:02:59.1]}
10. cxd5 {[%clk 0:02:59.5]} 10... exd5 {[%clk 0:03:00]} 11. O-O {[%clk
0:02:58.9]} 11... dxe4 {[%clk 0:02:59.5]} 12. Nxe4 {[%clk 0:02:59.8]} 12... Nd5
{[%clk 0:02:59.1]} 13. Bf2 {[%clk 0:02:57.3]} 13... Nf4 {[%clk 0:02:57.9]} 14.
Re1 {[%clk 0:02:41.7]} 14... Nxe2+ {[%clk 0:02:52.4]} 15. Rxe2 {[%clk
0:02:42.6]} 15... Nd7 {[%clk 0:02:49.8]} 16. Rd2 {[%clk 0:02:39.1]} 16... Qe7
{[%clk 0:02:43.7]} 17. Bg3 {[%clk 0:02:30.3]} 17... Ne5 {[%clk 0:02:41.8]} 18.
Qb3 {[%clk 0:02:07.4]} 18... h5 {[%clk 0:02:37.9]} 19. Rad1 {[%clk 0:01:58.3]}
19... h4 {[%clk 0:02:37.1]} 20. Bf2 {[%clk 0:01:38]} 20... h3 {[%clk 0:02:31.8]}
21. g3 {[%clk 0:01:38.2]} 21... b5 {[%clk 0:02:25.7]} 22. a4 {[%clk 0:00:53.4]}
22... Bb7 {[%clk 0:02:20.9]} 23. axb5 {[%clk 0:00:47.5]} 23... axb5 {[%clk
0:02:20.7]} 24. Nxb5 {[%clk 0:00:36.6]} 24... Nxf3+ {[%clk 0:02:19.4]} 25. Qxf3
{[%clk 0:00:37.5]} 25... Bxe4 {[%clk 0:02:15.4]} 26. Qg4 {[%clk 0:00:33.5]}
26... Bf5 {[%clk 0:02:10]} 27. Qf3 {[%clk 0:00:31.9]} 27... Rab8 {[%clk
0:01:55.1]} 28. Nd6 {[%clk 0:00:31.5]} 28... Be6 {[%clk 0:01:51.9]} 29. Ne4
{[%clk 0:00:28.2]} 29... Rb3 {[%clk 0:01:49.6]} 30. Qf4 {[%clk 0:00:23.2]} 30...
Bf5 {[%clk 0:01:35.4]} 31. Nd6 {[%clk 0:00:15.8]} 31... Be6 {[%clk 0:01:29.6]}
32. Ne4 {[%clk 0:00:11.5]} 32... Qb7 {[%clk 0:01:22.2]} 33. Bd4 {[%clk
0:00:06.9]} 33... Bxd4+ {[%clk 0:01:13.4]} 34. Rxd4 {[%clk 0:00:07.8]} 34... Rb5
{[%clk 0:00:52.1]} 35. Nf6+ {[%clk 0:00:07.8]} 35... Kg7 {[%clk 0:00:51.8]} 36.
Ne4 {[%clk 0:00:07.7]} 36... Rf5 {[%clk 0:00:47.1]} 37. Qd2 {[%clk 0:00:06.6]}
37... Qb6 {[%clk 0:00:40.5]} 38. Rf1 {[%clk 0:00:03]} 38... Rd8 {[%clk
0:00:34.8]} 39. Rxf5 {[%clk 0:00:03]} 39... Bxf5 {[%clk 0:00:34.4]} 0-1